Workbook

Sheet Start
A2: Erste Schritte mit Formeln
A3: In nur ein paar Schritten erstellen Sie Formeln und Funktionen in Excel, der leistungsstärksten Tabellenkalkulationsanwendung weltweit.
A4: Sie gelangen wieder zum Anfang, wenn Sie STRG+POS1 drücken. Zum Starten der Tour drücken Sie STRG+NACH-UNTEN-TASTE.

Sheet Grundlagen
A1: Grundlagen: Mathematik in Excel
A2: Sie können in Excel addieren, subtrahieren, multiplizieren und dividieren, ohne integrierte Funktionen zu verwenden. Sie benötigen lediglich die grundlegenden Operatoren +, -, *, /. Alle Formeln beginnen mit einem Gleichheitszeichen (=). | C2: Zu verwendende Zahlen: | E2: Operation: | F2: Formeln: | G2: Antworten:
A3: Wählen Sie zum Addieren Zelle F3 aus, geben Sie "=C3+C4" ein, und drücken Sie dann die EINGABE. | C3: 1 | E3: Addition (+) | G3: =C3+C4 -> 3
A4: Wählen Sie zum Subtrahieren Zelle F4 aus, geben Sie "=C3-C4" ein, und drücken Sie dann die EINGABE. | C4: 2 | E4: Subtraktion (-) | G4: =C3-C4 -> -1
A5: Wählen Sie zum Multiplizieren Zelle F5 aus, geben Sie "=C3*C4" ein, und drücken Sie dann die EINGABE. | E5: Multiplikation (*) | G5: =C3*C4 -> 2
A6: Wählen Sie zum Dividieren Zelle F6 aus, geben Sie "=C3/C4" ein, und drücken Sie dann die EINGABE. | E6: Division (/) | G6: =C3/C4 -> 0.5
A7: Sehen Sie sich das an: Ändern Sie die Zahlen in den Zellen C3 und C4, und beobachten Sie, wie sich die Formelergebnisse automatisch ändern. | E7: Potenzierung (^) | G7: =C3^C4 -> 1
A8: BONUSAUFGABE: Sie können einen Wert potenzieren, indem Sie das Zirkumflexzeichen (^) verwenden, wie in "=A1^A2". Sie finden es auf deutschen Tastaturen ganz links unter der ESC-Taste. Geben Sie in Zelle F7 "=C3^C4" ein.
A9: Tiefer einsteigen und mehr Details erfahren
A10: Nächster Schritt
A11: Weitere Informationen zu Formeln, Zellen und Bereichen
A12: Excel setzt sich aus einzelnen Zellen zusammen, die in Zeilen und Spalten gruppiert sind. Zeilen sind nummeriert, und Spalten werden mit Buchstaben bezeichnet. Es gibt mehr als 1 Million Zeilen und 16.000 Spalten, und Sie können in jede von Ihnen Formeln eingeben.
A13: Formeln können Zellbezüge, Bereiche von Zellbezügen, Operatoren und Konstanten enthalten. Alle folgenden Beispiele zeigen Formeln: =A1+B1 =10+20 =SUMME(A1:A10)
A14: Ihnen wird aufgefallen sein, dass wir im dritten Beispiel oben die Funktion SUMME verwendet haben. Eine Funktion ist ein fertig konfigurierter Befehl, der einen Wert oder Werte annimmt, sie in einer bestimmten Weise berechnet und ein Ergebnis zurückgibt. Beispielsweise nimmt die Funktion SUMME die von Ihnen angegebenen Zellbezüge oder Bereiche an und addiert sie. In diesem Beispiel nimmt sie die Zellen A1 bis A10 an und addiert sie. Excel verfügt über mehr als 400 Funktionen, die Sie auf der Registerkarte "Formeln" erkunden können.
A15: Formeln mit Funktionen beginnen mit einem Gleichheitszeichen, anschließend folgt der Funktionsname mit seinen Argumenten (den Werten, die eine Funktion für die Berechnung verwendet), die in Klammern eingeschlossen sind.
A16: Sie bestätigen eine Formel durch Drücken der EINGABE. Sobald Sie das tun, wird die Formel berechnet, und das Ergebnis wird in der Zelle angezeigt. Um die eigentliche Formel anzuzeigen, können Sie einen Blick auf die Bearbeitungsleiste unterhalb des Menübands werfen oder F2 drücken, um in den Bearbeitungsmodus zu wechseln, in dem die Formel in der Zelle angezeigt wird. Drücken Sie erneut die EINGABE, um die Formel abzuschließen und das Ergebnis zu berechnen.
A17: Einige Erläuterungen zu Formeln
A18: "=10+20" ist eine Formel, in der "10" und "20" Konstanten darstellen und das "+"-Zeichen den Operator bildet.
A19: "=SUMME(A1:A10)" ist eine Formel, in der SUMME den Funktionsnamen darstellt, die öffnende und schließende Klammer die Formelargumente einschließen und "A1:A10" den Zellbereich für die Funktion bildet.
A20: "=SUMME(A1:A10;C1:C10)" ist eine Formel, in der SUMME den Funktionsnamen darstellt, die öffnende und schließende Klammer die Formelargumente einschließen und "A1:A10;C1:C10" die durch ein Semikolon getrennten Zellbereiche für die Funktion bilden.
A21: WISSENSWERTES: Konstanten sind Werte, die Sie in Zellen oder Formeln eingeben. Zwar mag die Berechnung von "=10+20" den gleichen Wert ergeben wie "=A1+B1", trotzdem sind Konstanten praktisch keine gute Wahl. Warum? Weil sich die Konstante nicht ohne weiteres erkennen lässt, ohne die Zelle auszuwählen und danach zu suchen. Das kann spätere Änderungen schwierig machen. Es ist viel einfacher, Ihre Konstanten in Zellen einzusetzen, wo sie sich leicht anpassen lassen, und in Ihren Formeln darauf Bezug zu nehmen. Beispiel: Wählen Sie die gelbe Zelle unten mit der 12 aus. Sie sehen, dass wir die SUMME-Funktion in Verbindung mit einem Zellbereich verwendet haben. Wir haben nicht "4" oder "8" direkt in die Formel eingegeben.
A22: Zurück
A23: Weiter
A24: Weitere Informationen im Web
A25: Verwenden von Excel als Taschenrechner
A26: Übersicht über Formeln in Excel
A27: Excel-Funktionen (nach Kategorie)
A28: Excel-Funktionen (alphabetisch)
A29: Kostenlose Excel-Schulung online
J40: Werte
J41: 4
J42: 8
J43: =SUM(J41:J42) -> 12

Sheet Einführung in Funktionen
A1: Einführung in Funktionen
A2: Mit Funktionen können Sie eine Vielzahl von Dingen ausführen, etwa mathematische Operationen ausführen, Werte nachschlagen oder sogar Datums- und Uhrzeitwerte berechnen. Probieren wir ein paar Möglichkeiten aus, Werte mit der Funktion SUMME zu addieren. | C2: Obst | D2: Betrag | F2: Fleischwaren | G2: Betrag
A3: Geben Sie unter der Mengenspalte für Obst (Zelle D7) "=SUMME(D3:D6)" ein, oder tippen Sie "=SUMME(", wählen Sie den angegebenen Bereich dann mit der Maus aus, und drücken Sie die EINGABE. Dadurch werden die Werte in den Zellen D3, D4, D5 und D6 addiert. Sie sollten die Antwort 170 erhalten. | C3: Äpfel | D3: 50 | F3: Rindfleisch | G3: 50
A4: Nun versuchen wir es mit "AutoSumme". Wählen Sie die Zelle unter der Spalte für Fleischwaren (Zelle G7) aus, gehen Sie dann zu "Formeln" > "AutoSumme" > wählen Sie SUMME aus. Sie können sehen, dass Excel die Formel automatisch für Sie eingibt. Drücken Sie die EINGABE, um sie zu bestätigen. Das Feature "AutoSumme" weist alle der besonders häufigen Funktionen auf. | C4: Orangen | D4: 20 | F4: Huhn | G4: 30
A5: Hier ist eine praktische Tastenkombination. Wählen Sie Zelle D15 aus, und drücken Sie dann "Alt =" und dann die EINGABE. Dadurch wird automatisch SUMME für Sie eingegeben. | C5: Bananen | D5: 60 | F5: Schwein | G5: 10
A6: Tiefer einsteigen und mehr Details erfahren | C6: Zitronen | D6: 40 | F6: Fisch | G6: 50
A7: BONUSAUFGABE Probieren Sie die Funktion ANZAHL mit allen Methoden aus, die Sie bereits ausprobiert haben. Die Funktion ANZAHL zählt die Anzahl der Zellen in einem Bereich, der Zahlen enthält. | C7: SUMME > | D7: =SUM(D3:D6) -> 170 | F7: SUMME >
A8: Nächster Schritt
A9: Weitere Informationen zu Funktionen | C9: Artikel | D9: Betrag | F9: Artikel | G9: Betrag
A10: Gehen Sie zur Registerkarte "Formeln", und blättern Sie in der Funktionsbibliothek, in der Funktionen nach Kategorie aufgelistet sind, wie "Text", "Datum und Uhrzeit" usw. Mithilfe von "Funktion einfügen" können Sie anhand des Namens nach Funktionen suchen und einen Funktions-Assistenten starten, der Sie beim Erstellen Ihrer Formel unterstützt. Wenn Sie nach dem Drücken von "=" mit der Eingabe eines Funktionsnamens beginnen, startet Excel Intellisense, das alle Funktionen auflistet, die mit den von Ihnen eingegebenen Buchstaben beginnen. Wenn Sie die gewünschte Funktion gefunden haben, drücken Sie die TAB-Taste, dann vervollständigt Excel automatisch den Funktionsnamen und gibt die öffnende Klammer für Sie ein. Es zeigt außerdem die optionalen und die erforderlichen Argumente an. Sehen wir uns die Anatomie einiger Funktionen mal etwas genauer an. Die SUMME-Funktion ist wie folgt strukturiert: | C10: Brot | D10: 50 | F10: Brot | G10: 50
A11: Die Funktion SUMME würde ihre Arbeit wohl so beschreiben: "Gib die Summe aller Werte in den Zellen D35 bis D38 und die gesamte Spalte H zurück". SUMME ist der Funktionsname, "D35:D38" ist das erste Bereichsargument, das nahezu immer erforderlich ist, und "H:H" ist das zweite Bereichsargument, durch ein Semikolon getrennt. Probieren wir eine Funktion aus, die gar keine Argumente benötigt. | C11: Donuts | D11: 100 | F11: Donuts | G11: 100
A12: Die Funktion HEUTE gibt das Datum von heute zurück. Sie wird automatisch aktualisiert, wenn Excel eine Neuberechnung ausführt. | C12: Kekse | D12: 40 | F12: Kekse | G12: 40
A13: SEHEN SIE SICH DAS AN Wählen Sie diese Zellen aus. Suchen Sie anschließend in der unteren rechten Ecke des Excel-Fensters nach SUMME: 170 in der Leiste am unteren Rand. Sie heißt Statusleiste und stellt eine weitere Möglichkeit dar, schnell eine Summe und andere Details über eine ausgewählte Zelle oder einen ausgewählten Bereich zu ermitteln. | C13: Kuchen | D13: 50 | F13: Kuchen | G13: 50
A14: WICHTIGES DETAIL Doppelklicken Sie auf diese Zelle. Ihnen wird die 100 gegen Ende aufgefallen sein. Es ist zwar möglich, Zahlen in dieser Weise in eine Formel einzusetzen, wir empfehlen es aber nur, wenn es absolut erforderlich ist. Eine solche Zahl wird als Konstante bezeichnet, und nur zu leicht vergisst man, dass sie da ist. Wir empfehlen, stattdessen auf eine weitere Zelle zu verweisen, z.B. Zelle F51. Auf diese Weise ist die Konstante sichtbar und nicht im Innern einer Formel verborgen. | C14: Torten | D14: 20 | F14: Torten | G14: 20
A15: Weitere Informationen im Web | C15: SUMME > | F15: ANZAHL >
A16: Alles über die SUMME-Funktion
A17: Verwenden von "AutoSumme" zum Addieren von Zahlen
A18: Alles über die ANZAHL-Funktion
A19: Kostenlose Excel-Schulung online
A20: Zurück zum Anfang
A21: Nächster Schritt
C34: Obst | D34: Betrag
C35: Äpfel | D35: 50
C36: Orangen | D36: 20
C37: Bananen | D37: 60
C38: Zitronen | D38: 40
C39: SUMME > | D39: =SUM(D35:D38) -> 170
C44: Artikel | D44: Betrag
C45: PKW | D45: 20
C46: LKW | D46: 10
C47: Fahrräder | D47: 10
C48: Rollschuhe | D48: 40
D50: Summe: | F50: Zusätzlicher Wert | G50: Neue Summe
D51: =SUM(D45:D48,100) -> 180 | F51: 100 | G51: =SUM(D45:D48,F51) -> 180

Sheet MITTELWERT
A1: MITTELWERT-Funktion
A2: Verwenden Sie die MITTELWERT-Funktion, um den Mittelwert von Zahlen in einem Zellbereich zu ermitteln. | C2: Obst | D2: Betrag | F2: Fleischwaren | G2: Betrag
A3: Wählen Sie Zelle D7 aus, und verwenden Sie dann AutoSumme, um eine MITTELWERT-Funktion hinzuzufügen. | C3: Äpfel | D3: 50 | F3: Rindfleisch | G3: 50
A4: Wählen Sie jetzt Zelle G7 aus, und geben Sie eine MITTELWERT-Funktion ein, indem Sie =MITTELWERT(G3:G6) tippen. | C4: Orangen | D4: 20 | F4: Huhn | G4: 30
A5: In Zelle D15 können Sie entweder AutoSumme verwenden oder tippen, um eine weitere MITTELWERT-Funktion einzugeben. | C5: Bananen | D5: 60 | F5: Schwein | G5: 10
A6: SEHEN SIE SICH DAS AN Wählen Sie einen beliebigen Zahlenbereich aus, und schauen Sie in die Statusleiste, um sofort einen Mittelwert zu sehen. | C6: Zitronen | D6: 40 | F6: Fisch | G6: 50
A7: Vorheriges Blatt aktivieren | C7: MITTELWERT > | F7: MITTELWERT >
A8: Zum nächsten Blatt wechseln
A9: BONUSAUFGABE Versuchen Sie, hier MEDIAN oder MODUS zu verwenden. Mit MEDIAN erhalten Sie den Wert in der Mitte der Datengruppe, während MODUS den Wert zurückgibt, der am häufigsten auftritt. | C9: Artikel | D9: Betrag | F9: Artikel | G9: Betrag
A10: Links zu weiteren Informationen im Web | C10: Brot | D10: 50 | F10: Brot | G10: 50
A11: Auswählen, um alles über die MITTELWERT-Funktion aus dem Web zu erfahren | C11: Donuts | D11: 100 | F11: Donuts | G11: 100
A12: Auswählen, um alles über die MEDIAN-Funktion aus dem Web zu erfahren | C12: Kekse | D12: 40 | F12: Kekse | G12: 40
A13: Auswählen, um alles über die MODUS-Funktion aus dem Web zu erfahren | C13: Kuchen | D13: 50 | F13: Kuchen | G13: 50
A14: Auswählen, um Informationen über kostenlose Excel-Schulungen im Web anzuzeigen | C14: Torten | D14: 20 | F14: Torten | G14: 20
C15: MITTELWERT >

Sheet MIN und MAX
A1: Funktionen MIN und MAX
A2: Verwenden Sie die MIN-Funktion, um die Minimalzahl in einem Zellbereich abzurufen. | C2: Obst | D2: Betrag | F2: Fleischwaren | G2: Betrag
A3: Verwenden Sie die MAX-Funktion, um die Maximalzahl in einem Zellbereich abzurufen. | C3: Äpfel | D3: 50 | F3: Rindfleisch | G3: 50
A4: Wählen Sie Zelle D7 aus, und verwenden Sie dann den AutoSumme-Assistenten, um eine MIN-Funktion hinzuzufügen. | C4: Orangen | D4: 20 | F4: Huhn | G4: 30
A5: Wählen Sie jetzt Zelle G7 aus, und geben Sie eine MAX-Funktion ein, indem Sie "=MAX(G3:G6)" eingeben. | C5: Bananen | D5: 60 | F5: Schwein | G5: 10
A6: In Zelle D15 können Sie entweder den AutoSumme-Assistenten verwenden oder tippen, um eine MIN- oder MAX-Funktion einzugeben. | C6: Zitronen | D6: 40 | F6: Fisch | G6: 50
A7: Weitere Informationen im Web | C7: MIN > | F7: MAX >
A8: Alles über die MIN-Funktion
A9: Alles über die MAX-Funktion | C9: Artikel | D9: Betrag | F9: Artikel | G9: Betrag
A10: Kostenlose Excel-Schulung online | C10: Brot | D10: 50 | F10: Brot | G10: 50
A11: WISSENSWERTES Sowohl MIN als auch MAX können mit mehreren Bereichen oder Werten verwendet werden, um den größten oder kleinsten dieser Werte anzuzeigen, etwa in "=MIN(A1:A10;B1:B10)" oder "=MAX(A1:A10;B1)", wobei B1 hier einen Schwellenwert enthält, z.B. 10, der bewirkt, dass die Formel unter keinen Umständen ein Ergebnis kleiner als 10 zurückgibt. | C11: Donuts | D11: 100 | F11: Donuts | G11: 100
C12: Kekse | D12: 40 | F12: Kekse | G12: 40
C13: Kuchen | D13: 50 | F13: Kuchen | G13: 50
C14: Torten | D14: 20 | F14: Torten | G14: 20
C15: MIN oder MAX > | G15: =MIN(G10:G14,10) -> 10

Sheet Datum und Uhrzeit
A1: Datumsfunktionen
A2: Excel kann Ihnen auf der Grundlage der Ländereinstellungen Ihres Computers das aktuelle Datum ausgeben. Datumswerte können außerdem addiert und subtrahiert werden.
A3: Sehen Sie sich die Funktion HEUTE an, die das aktuelle Datum zurückgibt. Dies sind Livefunktionen, auch als volatile Funktionen bezeichnet – wenn Sie Ihre Arbeitsmappe morgen öffnen, hat sie das Datum von morgen. Geben Sie in Zelle D6 "=HEUTE()" ein.
A4: Subtrahieren von Datumswerten – Geben Sie Ihren nächsten Geburtstag im Format TT.MM.JJ in Zelle D7 ein, und sehen Sie zu, während Excel Ihnen anzeigt, wie viele Tage noch verbleiben, indem Sie in Zelle D8 "=D7-D6" verwenden.
A5: Addieren von Datumswerten – Nehmen wir an, Sie möchten wissen, an welchem Datum eine Rechnung fällig ist oder wann Sie ein Buch in die Bücherei zurückbringen müssen. Sie können Tage zu einem Datum addieren, um das herauszufinden. Geben Sie in Zelle D10 eine zufällige Anzahl Tage ein. In Zelle D11 hatten wir "=D6+D10" addiert, um das Fälligkeitsdatum ab heute zu berechnen. | C5: Datumsfunktionen
A6: WISSENSWERTES Excel speichert Datumswerte und Uhrzeiten auf der Basis der Anzahl der Tage seit dem 1. Januar 1900. Uhrzeiten werden als Bruchteile eines Tages auf Minutenbasis gespeichert. Daher wird der 01.01.2017, 12:30 h tatsächlich als 42736,5208 gespeichert. Wenn die Uhrzeit oder das Datum in dieser Weise als Zahl angezeigt wird, drücken Sie STRG+1 > Zahl > ein Datums- oder Uhrzeitformat auswählen. | C6: Heutiges Datum: | F6: =IF(D6=TODAY(),"Auf den Punkt!","") -> 
A7: WICHTIGES DETAIL Wenn Sie nicht möchten, dass Excel eine negative Zahl anzeigt, weil Sie Ihren Geburtstag noch nicht eingetragen haben, können Sie eine WENN-Funktion in folgender Weise einsetzen: =WENN(D7="";"";D7-D6), was bedeutet: "WENN D7 keinen Wert hat, dann zeige keinen Wert an, andernfalls zeige D7 minus D6 an". | C7: Ihr Geburtstag
A8: Uhrzeitfunktionen | C8: Tage bis zu Ihrem Geburtstag: | D8: =D7-D6 -> 0
A9: Excel kann Ihnen auf der Grundlage der Ländereinstellungen Ihres Computers die aktuelle Uhrzeit ausgeben. Uhrzeitwerte können außerdem addiert und subtrahiert werden. Vielleicht müssen Sie beispielsweise nachverfolgen, wie viele Stunden ein Mitarbeiter in jeder Woche gearbeitet hat, und seinen Lohn und die Überstunden berechnen.
A10: Geben Sie in Zelle D28 "=JETZT()" ein, wodurch Sie die aktuelle Uhrzeit erhalten. Der Wert wird bei jeder Ausführung einer Berechnung von Excel aktualisiert. Wenn Sie das Uhrzeitformat ändern müssen, können Sie zu STRG+1 wechseln > "Zahlen" > "Uhrzeit" > Wählen Sie das gewünschte Format aus. | C10: Tage für Nachfrist:
A11: Addieren von Stunden bei Uhrzeitwerten – In Zelle D36 haben wir "=((D35-D32)-(D34-D33))*24" eingegeben, wodurch die Anfangs- und Endzeiten eines Mitarbeiters berechnet werden. Anschließend wird die Zeit für die Mittagspause subtrahiert. Die "*24" am Ende der Formel konvertiert den Bruchteil des Tages, mit dem Excel arbeitet, in Stunden. Die Zelle muss jedoch als Zahl formatiert werden. Wechseln Sie zu diesem Zweck zu Start > Zellen formatieren (STRG+1) > Zahlen > Zahl > 2 Dezimalstellen. | C11: Rechnung fällig am: | D11: =D6+D10 -> 00:00:00
A12: Diese Formel würde sich selbst so erklären: "Nimm die Ausstempelzeit und subtrahiere sie von der Einstempelzeit, dann subtrahiere die Zeiten für die Mittagspause, dann multipliziere alles mit 24, um die Bruchzahldarstellung von Excel in Stunden zu konvertieren", oder =((Ausstempelzeit - Einstempelzeit)-(Ende Mittagspause - Anfang Mittagspause))*24.
A13: Zurück
A14: Weiter
A15: Weitere Informationen im Web
A16: Alles über die HEUTE-Funktion
A17: Alles über die JETZT-Funktion
A18: Alles über die DATUM-Funktion
A19: Kostenlose Excel-Schulung online
C27: Uhrzeitfunktionen
C28: Aktuelle Uhrzeit:
C31: Arbeitsstunden gesamt
C32: Einstempelzeit: | D32: 08:00:00
C33: Anfang Mittagspause: | D33: 12:00:00
C34: Ende Mittagspause: | D34: 13:00:00
C35: Ausstempelzeit: | D35: 17:00:00
C36: Stunden gesamt: | D36: =((D35-D32)-(D34-D33))*24 -> 8
C45: Datum und Uhrzeit (statisch)
C46: Datum: | D46: 2017-09-27
C47: Uhrzeit: | D47: 08:52:00

Sheet Verknüpfen von Text und Zahlen
A1: Verknüpfen von Text aus verschiedenen Zellen
A2: Es gibt viele Situationen in Excel, in denen Sie Text, der sich in verschiedenen Zellen befindet, verknüpfen möchten. Das ist ein sehr häufiges Beispiel, bei dem Sie über Vor- und Nachnamen verfügen und sie als Vorname und Nachname zum vollständigen Namen kombinieren möchten. Glücklicherweise ermöglicht Excel das mithilfe des kaufmännischen Und-Zeichens (&), das Sie mit UMSCHALT+6 eingeben können. | C2: Vorname | D2: Nachname | E2: Nachname, Vorname | F2: Vollständiger Name
A3: Geben Sie in Zelle E3 "=D3&C3" ein, um die Vor- und Nachnamen zu verknüpfen. | C3: Carla | D3: Kobusch | E3: =D3&", "&C3 -> Kobusch, Carla | F3: =C3&" "&D3 -> Carla Kobusch
A4: "KobuschCarla" sieht allerdings nicht ganz richtig aus. Wir müssen ein Komma und ein Leerzeichen hinzufügen. Wir verwenden dazu Anführungszeichen, um eine neue Textzeichenfolge zu erstellen. Geben Sie diesmal "=D3&", "&C3" ein. Der Teil "&", "&" erlaubt es uns, ein Komma und ein Leerzeichen mit dem Text in den Zellen zu verknüpfen. | C4: Kasper | D4: Graf
A5: Um den vollständigen Namen zu erstellen, verknüpfen wir Vor- und Nachnamen und verwenden ein Leerzeichen, aber ohne Komma. Geben Sie in F3 "=C3&" "&D3" ein. | C5: Jan | D5: Sachweh
A6: Tiefer einsteigen und mehr Details erfahren | C6: Marie | D6: Krause
A7: Weiter | C7: Maximilian | D7: Tropschuh
A8: Gemeinsame Verwendung von Text und Zahlen | C8: Christoph | D8: Werner
A9: Jetzt werden wir das "&" verwenden, um Text mit Zahlen zu verknüpfen, nicht nur Text mit Text Sehen Sie sich die Zellen C28:D29 an. Sehen Sie, dass sich Datum und Uhrzeit in separaten Zellen befinden? Sie können sie mit dem "&"-Symbol verknüpfen, wie das in den Zellen C32:C33 dargestellt ist, aber das Ergebnis sieht nicht richtig aus, oder? Unglücklicherweise weiß Excel nicht, wie Sie die Zahlen formatieren möchten, daher bricht es sie auf ihr grundlegendstes Format herunter, in diesem Fall das serielle Datum. Wir müssen Excel explizit mitteilen, wie der Zahlenteil der Formel formatiert werden soll, damit er in der resultierenden Textzeichenfolge in der gewünschten Weise angezeigt wird. Sie können das mit der Funktion TEXT und einem Formatcode erreichen. | C9: Lorenz | D9: Otto
A10: Geben Sie in Zelle C36 "=C28&" "&TEXT(D28;"TT.MM.JJJJ")" ein. TT.MM.JJJJ ist der in Deutschland gültige Formatcode für Tag.Monat.Jahr, z.B. 25.09.2017. | C10: Giselle | D10: Faber
A11: Geben Sie in Zelle C37 "=C29&" "&TEXT(D29;"H:MM") ein. "H:MM" wäre der US-Formatcode für die 12-Stunden-Darstellung für Stunden:Minuten vor oder nach 12:00 mittags, wie 13:30.
A12: SEHEN SIE SICH DAS AN Formeln, speziell umfangreiche, sind manchmal schwer zu lesen, aber sie können ihre Teile mit Leerzeichen aufteilen, wie hier: = C28 & "" & TEXT(D28;"TT.MM.JJJJ")
A13: EINE UNTERSUCHUNG WERT Wenn Sie nicht wissen, welchen Formatcode Sie verwenden sollen, können Sie STRG+1 > "Zahlen" verwenden, um jede Zelle in der gewünschten Weise zu formatieren. Wählen Sie dann die Option "Benutzerdefiniert". Sie können den angezeigten Formatcode zurück in Ihre Formel kopieren.
A14: Weitere Informationen im Web
A15: Alles über die TEXT-Funktion
A16: Kombinieren von Text und Zahlen
A17: Kostenlose Excel-Schulung online
C27: Verwenden von Text und Zahlen
C28: Heutiges Datum: | D28: =TODAY() -> 2019-10-10
C29: Aktuelle Uhrzeit: | D29: =NOW() -> 43748.40007
C31: Verknüpfen von Text und Zahlen
C32: =C28&" "&D28 -> Heutiges Datum: 43748
C33: =C29&" "&D29 -> Aktuelle Uhrzeit: 43748,4000702546
C35: Formatieren von Text und Zahlen
C36: =C28 &" "& TEXT(D28,"TT.MM.JJJJ") -> Heutiges Datum: 10.10.2019
C37: =C29&" "&TEXT(D29,"H:MM") -> Aktuelle Uhrzeit: 9:36

Sheet WENN-Anweisungen
A1: WENN-Anweisungen
A2: Mithilfe von WENN-Anweisungen können Sie logische Vergleiche zwischen Bedingungen vornehmen. Allgemein ausgedrückt bewirkt eine WENN-Anweisung, dass wenn eine Bedingung wahr ist, eine bestimmte Aktion ausgeführt wird, andernfalls wird eine andere Aktion ausgeführt. Die Formeln können Text, Werte oder sogar weitere Berechnungen zurückgeben.
A3: Geben Sie in Zelle D9 "=WENN(C9="Apfel";WAHR;FALSCH)" ein. Die richtige Antwort ist WAHR.
A4: Kopieren Sie D9 nach D10. Die Antwort hier sollte FALSCH sein, denn eine Orange ist kein Apfel.
A5: Probieren Sie ein anderes Beispiel aus, indem Sie sich die Formel in Zelle D12 ansehen. Wir haben für Sie "=WENN(C12<100;'Kleiner als 100';'Größer als oder gleich 100')" vorbereitet. Was geschieht, wenn Sie in Zelle C12 eine Zahl größer als 100 eingeben?
A6: WICHTIGES DETAIL WAHR und FALSCH unterscheiden sich insofern von anderen Wörtern in Excel-Formeln, als sie nicht in Anführungszeichen gesetzt werden müssen und Excel sie automatisch in Großbuchstaben schreibt. Auch Zahlen müssen nicht in Anführungszeichen stehen. Gewöhnlicher Text, wie "Ja" oder "Nein", muss in Anführungszeichen stehen, wie hier: =WENN(C9="Apfel";"Ja";"Nein")
A7: Mehr Details erfahren
A8: Weiter | C8: WENN-Anweisungen
A9: WENN-Anweisung mit einer anderen Funktion | C9: Apfel
A10: Mit WENN-Anweisungen lässt sich auch die Ausführung zusätzlicher Berechnungen erzwingen, wenn eine bestimmte Bedingung erfüllt ist. Hier werden wir eine Zelle auswerten, um zu sehen, ob Mehrwertsteuer in Rechnung gestellt werden soll, und diese berechnen, wenn die Bedingung wahr ist. | C10: Orange
A11: In Zelle F33 haben wir =WENN(E33="Ja";F31*Mehrwertsteuer;0) eingegeben, wobei wir "Mehrwertsteuer" als einen benannten Bereich mit dem Wert 0,0825 eingerichtet haben. Unsere Formel besagt, dass wenn Zelle E33 den Wert "Ja" aufweist, dann wird Zelle F31 mit "Mehrwertsteuer" multipliziert, andernfalls wird eine 0 zurückgegeben. Ändern Sie versuchsweise das "Ja" in Zelle E33 in Nein, um die Änderung der Berechnung zu sehen.
A12: Als Nächstes haben wir eine WENN-Anweisung hinzugefügt, um ggf. die Versandkosten zu berechnen. In Zelle F35 sehen Sie =WENN(E35="Ja";SUMME(D28:D29)*1,25;0). Dies bedeutet: "Wenn Zelle E35 'Ja' ist, nimm die Summe der Spalte 'Menge' in der Tabelle oben und multipliziere sie mit 1,25; gibt andernfalls 0 zurück". | C12: 50 | D12: =IF(C12<100,"Kleiner als 100","Größer als oder gleich 100") -> Kleiner als 100
A13: Ändern Sie als Nächstes die 1,25 in der Formel in Zelle F35 in "Versand". Wenn Sie mit der Eingabe beginnen, sollte die AutoKorrekturfunktion von Excel den Eintrag für Sie finden. Wenn dies der Fall ist, drücken Sie die TAB-Taste, um den Wert einzugeben. Dies ist ein benannter Bereich, und wir haben ihn über "Formeln" > "Namen definieren" eingegeben. Wenn Sie jemals Ihre Versandkosten ändern müssen, brauchen Sie das nur an einer Stelle zu tun, und Sie können den Namen "Versand" überall in der Arbeitsmappe verwenden.
A14: WISSENSWERTES Wenn Sie eine Formel erstellen, platziert Excel automatisch farbige Rahmen um alle Bereiche, auf die die Formel verweist, und die entsprechenden Bereiche in der Formel werden in der gleichen Farbe dargestellt. Sie können das sehen, wenn Sie Zelle F33 auswählen und F2 drücken, um die Formel zu bearbeiten.
A15: EXPERTENTIPP Mithilfe von benannten Bereichen können Sie Ausdrücke oder Werte an einem einzelnen Ort definieren und sie dann in der gesamten Arbeitsmappe verwenden. Sie können alle benannten Bereiche in dieser Arbeitsmappe anzeigen, indem Sie zu "Formeln" > "Namens-Manager" gehen. Klicken Sie hier, um weitere Informationen anzuzeigen.
A16: Zurück
A17: Weiter
A18: Weitere Informationen im Web
A19: Alles über die WENN-Funktion
A20: Alles über die WENNS-Funktion
A21: Erweiterte WENN-Anweisungen
A22: Kostenlose Excel-Schulung online
C27: Artikel | D27: Menge | E27: Kosten | F27: Gesamt
C28: Widget | D28: 2 | E28: 9.76 € | F28: ='WENN-Anweisungen'!E28:E29*'WENN-Anweisungen'!$D$28:$D$29 -> 19.52 €
C29: Doohickey | D29: 3 | E29: 3.42 € | F29: ='WENN-Anweisungen'!E28:E29*'WENN-Anweisungen'!$D$28:$D$29 -> 10.26 €
D31: Zwischensumme | E31: =SUM('WENN-Anweisungen'!$E$28:$E$29) -> 13.18 € | F31: =SUM('WENN-Anweisungen'!F28:F29) -> 29.78 €
D33: Mehrwertsteuer? | E33: Ja | F33: =IF(E33="Ja",F31*Mehrwertsteuer,0) -> 2.46 €
D35: Versand? | E35: Ja | F35: =IF(E35="Ja",SUM(D28:D29)*1.25,0) -> 6.25 €
D37: Gesamt | F37: =SUM(F33,F31,F35) -> 38.48 €

Sheet SVERWEIS
A1: SVERWEIS
A2: SVERWEIS ist eine der am häufigsten verwendeten Funktionen in Excel (und auch einer unserer Favoriten!). Mit SVERWEIS können Sie einen Wert in einer Spalte links nachschlagen und dann Informationen in einer anderen Spalte rechts zurückgeben, wenn eine Übereinstimmung gefunden wird. SVERWEIS sagt über sich:
A3: =SVERWEIS(A1;B:C;2;FALSCH)
A4: Wonach möchten Sie suchen?
A5: Wenn Sie es finden, wie viele Spalten nach rechts möchten Sie einen Wert abrufen?
A6: Wo möchten Sie danach suchen?
A7: Möchten Sie eine genaue oder eine ungefähre Übereinstimmung?
A8: Geben Sie in Zelle D22 "=SVERWEIS(C22;C17:D20;2;FALSCH)" ein. Die richtige Antwort für "Äpfel" ist 50. SVERWEIS hat nach "Äpfel" gesucht, den Wert gefunden, wechselte dann eine Spalte nach rechts und gab den Betrag zurück.
A9: Versuchen Sie es jetzt selbst im Abschnitt "Fleischwaren" in Zelle G22. Sie sollten beim Ergebnis "=SVERWEIS(F22;F17:G20;2;FALSCH)" landen.
A10: EINFACH AUSPROBIEREN Versuchen Sie, in den Dropdownlisten verschiedene Elemente auszuwählen. Sie sehen, dass sich die Ergebniszellen sofort mit neuen Werten aktualisieren.
A11: Tiefer einsteigen und mehr Details erfahren
A12: Weiter
A13: SVERWEIS und #NV
A14: Unweigerlich werden Sie der Situation begegnen, dass SVERWEIS nicht finden kann, was Sie suchen, und einen Fehler (#NV) zurückgibt. Manchmal liegt das daran, dass es den Nachschlagewert einfach nicht gibt, oder es hat den Grund, dass die Bezugszelle noch keinen Wert hat.
A15: Wenn Sie wissen, dass Ihr Nachschlagewert vorhanden ist, Sie aber den Fehler bei leerer Nachschlagezelle ausblenden möchten, können Sie eine WENN-Anweisung verwenden. In diesem Fall verpacken wir Ihre vorhandene SVERWEIS-Formel in Zelle D43 in dieser Weise: =WENN(C43="";"";SVERWEIS(C43;C37:D41;2;FALSCH)) Das bedeutet: Wenn Zelle C43 keinen Wert aufweist (""), nichts zurückgeben, andernfalls das Ergebnis von SVERWEIS zurückgeben. Beachten Sie die zweite schließende Klammer am Ende der Formel. Diese schließt die WENN-Anweisung.
A16: Wenn Sie nicht sicher sind, ob Ihr Nachschlagewert vorhanden ist, die Anzeige des NV-Fehlers aber trotzdem unterdrücken möchten, können Sie in Zelle G43 eine Fehlerbehandlungsfunktion mit dem Namen WENNFEHLER verwenden: =WENNFEHLER(SVERWEIS(F43;F37:G41;2;FALSCH),""). WENNFEHLER besagt, wenn SVERWEIS ein gültiges Ergebnis zurückgibt, wird dieses angezeigt, andernfalls nichts (""). Wir zeigen hier nichts ("") an, aber Sie können auch Zahlen (0,1, 2 usw.) oder Text wie "Die Formel ist nicht korrekt" verwenden. | C16: Obst | D16: Betrag | F16: Fleischwaren | G16: Betrag
A17: WICHTIGES DETAIL WENNFEHLER ist das, was als ein allgemeiner Fehlerhandler bezeichnet wird, d.h., er unterdrückt jeden Fehler, den Ihre Formel eventuell ausgibt. Dies kann zu Problemen führen, wenn Excel Ihnen eine Benachrichtigung geben möchte, dass Ihre Formel einen wirklichen Fehler enthält, der behoben werden muss. Daher lautet die Faustregel, Ihren Formeln keine Fehlerhandler hinzuzufügen, wenn Sie nicht absolut sicher sind, dass sie ordnungsgemäß arbeiten. | C17: Äpfel | D17: 50 | F17: Rindfleisch | G17: 50
A18: Zurück | C18: Orangen | D18: 20 | F18: Huhn | G18: 30
A19: Weiter | C19: Bananen | D19: 60 | F19: Schwein | G19: 10
A20: Weitere Informationen im Web | C20: Zitronen | D20: 40 | F20: Fisch | G20: 50
A21: Alles über die SVERWEIS-Funktion
A22: Alles über die INDEX/VERGLEICH-Funktionen | C22: Äpfel | F22: Schwein
A23: Alles über die WENNFEHLER-Funktion
A24: Verwenden von PivotTables zum Analysieren von Arbeitsblattdaten
A25: Kostenlose Excel-Schulung online
C35: Wenn die Funktion SUMME in Zelle D42 sprechen könnte, würde sie wohl Folgendes sagen: Addiere die Werte in den Zellen D38, D39, D40 und D41.
C36: Artikel | D36: Betrag | F36: Artikel | G36: Betrag
C37: Brot | D37: 50 | F37: Brot | G37: 50
C38: Donuts | D38: 100 | F38: Donuts | G38: 100
C39: Kekse | D39: 40 | F39: Kekse | G39: 40
C40: Kuchen | D40: 50 | F40: Kuchen | G40: 50
C41: Torten | D41: 20 | F41: Torten | G41: 20
D43: =VLOOKUP(C43,C37:D41,2,FALSE) ->  | F43: Feingebäck | G43: =IFERROR(VLOOKUP(F43,F37:G41,2,FALSE),"") -> 

Sheet Bedingte Funktionen
A1: Bedingte Funktionen – SUMMEWENN
A2: Mithilfe von bedingten Funktionen können Sie die Summe, den Mittelwert, die Anzahl sowie Minimum oder Maximum eines Bereichs auf der Grundlage einer bestimmten Bedingung oder eines von Ihnen festgelegten Kriteriums bestimmen. In dem Sinne: Von allen Früchten in der Liste sind wie viele Äpfel? Oder wie viele Orangen sind vom Floridatyp? | C2: Obst | D2: Betrag | F2: Obst | G2: Typ | H2: Betrag | Z2: Obst | AB2: Äpfel | AD2: Orangen | AF2: Bananen | AH2: Zitronen
A3: Mit SUMMEWENN können Sie Werte in einem Bereich auf der Grundlage eines spezifischen Kriteriums addieren, das Sie in einem anderen Bereich suchen, etwa der Anzahl der Äpfel. Wählen Sie Zelle D17 aus, und geben Sie "=SUMMEWENN(C3:C14;C17;D3:D14)" ein. SUMMEWENN ist wie folgt strukturiert: | C3: Äpfel | D3: 50 | F3: Äpfel | G3: Fuji | H3: 50 | Z3: Äpfel | AB3: Fuji | AD3: Florida | AF3: Cavendish | AH3: Rough
A4: =SUMMEWENN(C3:C14;C17;D3:D4) | C4: Orangen | D4: 20 | F4: Orangen | G4: Florida | H4: 20 | Z4: Orangen | AB4: Honeycrisp | AD4: Navel | AF4: Lady Finger | AH4: Eureka
A5: Welchen Bereich möchten Sie sich ansehen? | C5: Bananen | D5: 60 | F5: Bananen | G5: Cavendish | H5: 60 | Z5: Bananen
A6: Welchen Wert (Text oder Zahl) möchten Sie suchen? | C6: Zitronen | D6: 40 | F6: Zitronen | G6: Rough | H6: 40 | Z6: Zitronen
A7: Für jede gefundene Übereinstimmung: In welchem Bereich möchten Sie addieren? | C7: Äpfel | D7: 50 | F7: Äpfel | G7: Honeycrisp | H7: 50
A8: SUMMEWENNS ist das Gleiche wie SUMMEWENN, erlaubt aber die Verwendung mehrerer Kriterien. Daher können Sie in diesem Beispiel nach "Obst" und "Typ" anstatt nur nach "Obst" suchen. Wählen Sie Zelle H17 aus, und geben Sie "=SUMMEWENNS(H3:H14;F3:F14;F17;G3:G14;G17)" ein. SUMMEWENNS ist wie folgt strukturiert: | C8: Orangen | D8: 20 | F8: Orangen | G8: Navel | H8: 20
A9: =SUMMEWENN(H3:H14;F3:F14;F17;G3:G14;G17) | C9: Bananen | D9: 60 | F9: Bananen | G9: Lady Finger | H9: 60
A10: Welchen Bereich möchten Sie addieren? | C10: Zitronen | D10: 40 | F10: Zitronen | G10: Eureka | H10: 40
A11: Dies ist der erste Bereich, in dem nach Übereinstimmungen gesucht wird | C11: Äpfel | D11: 50 | F11: Äpfel | G11: Honeycrisp | H11: 50
A12: Dies ist das Kriterium für die erste Übereinstimmung | C12: Orangen | D12: 20 | F12: Orangen | G12: Navel | H12: 20
A13: Dies ist der zweite Bereich, in dem nach Übereinstimmungen gesucht wird | C13: Bananen | D13: 60 | F13: Bananen | G13: Cavendish | H13: 60
A14: Dies ist das Kriterium für die zweite Übereinstimmung | C14: Zitronen | D14: 40 | F14: Zitronen | G14: Eureka | H14: 40
A15: EXPERTENTIPP Jede der Zellen für Obst und Typ verfügt über eine Dropdownliste, in der Sie verschiedene Obstsorten auswählen können. Probieren Sie es aus, und beobachten Sie, wie die Formeln automatisch aktualisiert werden.
A16: Tiefer einsteigen und mehr Details erfahren | C16: Obst | D16: SUMMEWENN | F16: Obst | G16: Typ | H16: SUMMEWENNS
A17: Nächster Schritt | C17: Äpfel | F17: Orangen | G17: Florida
A18: Bedingte Funktionen – ZÄHLENWENN
A19: Mithilfe von ZÄHLENWENN und ZÄHLENWENNS können Sie Werte in einem Bereich anhand von Kriterien zählen, die Sie festlegen. Sie unterscheiden sich ein bisschen von den anderen WENN- und WENNS-Funktionen, insofern sie nur einen Kriterienbereich und Kriterien aufweisen. Sie werten nicht einen Bereich aus und suchen dann in einem anderen, um zusammenzufassen.
A20: Wählen Sie Zelle D64 aus, und geben Sie "=ZÄHLENWENN(C50:C61;C64)" ein. ZÄHLENWENN ist wie folgt strukturiert:
A21: =ZÄHLENWENN(C50:C61;C64)
A22: Welchen Bereich möchten Sie sich ansehen?
A23: Welchen Wert (Text oder Zahl) möchten Sie suchen?
A24: ZÄHLENWENNS ist das Gleiche wie ZÄHLENWENN, erlaubt aber die Verwendung mehrerer Kriterien. Daher können Sie in diesem Beispiel nach "Obst" und "Typ" anstatt nur nach "Obst" suchen. Wählen Sie Zelle H64 aus, und geben Sie "=ZÄHLENWENNS(F50:F61;F64;G50:G61;G64)" ein. ZÄHLENWENNS ist wie folgt strukturiert:
A25: =ZÄHLENWENNS(F50:F61;F64;G50:G61;G64)
A26: Dies ist der erste zu zählende Bereich
A27: Dies ist das Kriterium für die erste Übereinstimmung
A28: Dies ist der zweite zu zählende Bereich
A29: Dies ist das Kriterium für die zweite Übereinstimmung
A30: Tiefer einsteigen und mehr Details erfahren
A31: Weiter
A32: Mehr bedingte Funktionen
A33: Sie haben SUMMEWENN, SUMMEWENNS, ZÄHLENWENN und ZÄHLENWENNS bereits kennengelernt. Jetzt können Sie sich auf eigene Faust an den anderen Funktionen versuchen, wie MITTELWERTWENN/S, MAXWENNS, MINWENNS. Sie sind alle gleich strukturiert, daher können Sie, sobald Sie eine Formel geschrieben haben, einfach den Funktionsnamen durch den Namen der gewünschten Funktion ersetzen. Wir haben alle Formeln ausgeschrieben, die Sie für Zelle E106 benötigen, daher können Sie diese kopieren und dort einfügen oder versuchen, Sie übungshalber selbst einzugeben. SUMMEWENN =SUMMEWENN(C92:C103;C106;E92:E103) SUMMEWENNS =SUMMEWENNS(E92:E103;C92:C103;C106;D92:D103;D106) MITTELWERTWENN =MITTELWERTWENN(C92:C103;C106;E92:E103) MITTELWERTWENNS =MITTELWERTWENNS(E92:E103;C92:C103;C106;D92:D103;D106) ZÄHLENWENN =ZÄHLENWENN(C92:C103;C106) ZÄHLENWENNS =ZÄHLENWENNS(C92:C103;C106;D92:D103;D106) MAXWENNS =MAXWENNS(E92:E103;C92:C103;C106;D92:D103;D106) MINWENNS =MINWENNS(E92:E103;C92:C103;C106;D92:D103;D106)
A34: Tiefer einsteigen und mehr Details erfahren
A35: Weiter
A36: SUMMEWENN mit einem Wertargument
A37: Hier ist ein Beispiel der Funktion SUMMEWENN, das "größer als" (>) verwendet, um alle Werte zu finden, die größer als ein angegebener Betrag sind:
A38: =SUMIF(D118:D122,">=50") -> 200
A39: Werte auf der Grundlage dieses Kriteriums addieren:
A40: ...Diese Zellen durchsuchen...
A41: ...und wenn der Wert größer ist als 50, addieren.
A42: ANMERKUNG: Wenn Sie feststellen, dass Sie viele bedingte Formeln erstellen, kann sich eine PivotTable als bessere Lösung erweisen. Weitere Informationen finden Sie in diesem PivotTable-Artikel.
A43: Weitere Informationen im Web
A44: Alles über die SUMMEWENN-Funktion
A45: Alles über die SUMMEWENNS-Funktion
A46: Alles über die ZÄHLENWENN-Funktion
A47: Alles über die ZÄHLENWENNS-Funktion
A48: Alles über die MITTELWERTWENN-Funktion
A49: Alles über die MITTELWERTWENNS-Funktion | C49: Obst | D49: Betrag | F49: Obst | G49: Typ | H49: Betrag
A50: Alles über die MINWENNS-Funktion | C50: Äpfel | D50: 50 | F50: Äpfel | G50: Fuji | H50: 50
A51: Alles über die MAXWENNS-Funktion | C51: Orangen | D51: 20 | F51: Orangen | G51: Florida | H51: 20
A52: Erstellen einer Dropdownliste | C52: Bananen | D52: 60 | F52: Bananen | G52: Cavendish | H52: 60
A53: Kostenlose Excel-Schulung online | C53: Zitronen | D53: 40 | F53: Zitronen | G53: Rough | H53: 40
A54: Zurück zum Anfang | C54: Äpfel | D54: 50 | F54: Äpfel | G54: Honeycrisp | H54: 50
A55: Weiter | C55: Orangen | D55: 20 | F55: Orangen | G55: Navel | H55: 20
C56: Bananen | D56: 60 | F56: Bananen | G56: Lady Finger | H56: 60
C57: Zitronen | D57: 40 | F57: Zitronen | G57: Eureka | H57: 40
C58: Äpfel | D58: 50 | F58: Äpfel | G58: Honeycrisp | H58: 50
C59: Orangen | D59: 20 | F59: Orangen | G59: Navel | H59: 20
C60: Bananen | D60: 60 | F60: Bananen | G60: Cavendish | H60: 60
C61: Zitronen | D61: 40 | F61: Zitronen | G61: Eureka | H61: 40
C63: Obst | D63: ZÄHLENWENN | F63: Obst | G63: Typ | H63: ZÄHLENWENNS
C64: Äpfel | D64: =COUNTIF(C50:C61,C64) -> 3 | F64: Orangen | G64: Florida | H64: =COUNTIFS(F50:F61,F64,G50:G61,G64) -> 1
C91: Obst | D91: Typ | E91: Betrag
C92: Äpfel | D92: Fuji | E92: 50
C93: Orangen | D93: Florida | E93: 20
C94: Bananen | D94: Cavendish | E94: 60
C95: Zitronen | D95: Rough | E95: 40
C96: Äpfel | D96: Honeycrisp | E96: 50
C97: Orangen | D97: Navel | E97: 20
C98: Bananen | D98: Lady Finger | E98: 60
C99: Zitronen | D99: Eureka | E99: 40
C100: Äpfel | D100: Honeycrisp | E100: 50
C101: Orangen | D101: Navel | E101: 20
C102: Bananen | D102: Cavendish | E102: 60
C103: Zitronen | D103: Eureka | E103: 40
C105: Obst | D105: Typ | E105: Probieren Sie es aus
C106: Zitronen | D106: Eureka | E106: =AVERAGEIFS(E92:E103,C92:C103,C106,D92:D103,D106) -> 40
C117: Artikel | D117: Betrag
C118: Brot | D118: 50
C119: Donuts | D119: 100
C120: Kekse | D120: 40
C121: Kuchen | D121: 50
C122: Torten | D122: 20
D123: =SUMIF(D118:D122,">=50") -> 200

Sheet Funktions-Assistent
A1: Lassen Sie sich vom Funktions-Assistenten führen
A2: Wenn Sie den Namen der Funktion kennen, die Sie verwenden möchten, aber nicht sicher sind, wie sie erstellt wird, können Sie den Funktions-Assistenten zur Unterstützung verwenden.
A3: Wählen Sie Zelle D10 aus, wechseln Sie dann zu "Formeln" > "Funktion einfügen" > geben Sie SVERWEIS in das Feld "Funktion suchen" ein, und klicken Sie auf "OK". Wenn SVERWEIS hervorgehoben angezeigt wird, klicken Sie unten auf "OK". Wenn Sie eine Funktion in der Liste auswählen, zeigt Excel ihre Syntax an.
A4: Geben Sie als Nächstes die Funktionsargumente in ihre entsprechenden Textfelder ein. Excel überprüft die einzelnen Argumente, während Sie sie eingeben, und zeigt das Ergebnis an, mit dem Endergebnis am unteren Rand. Beim Eintritt in die einzelnen Abschnitte werden die Kriterien für jedes der Argumente unten im Formular aufgelistet. Klicken Sie auf "OK", wenn Sie fertig sind, dann gibt Excel die Formel für Sie ein. | C4: Obst | D4: Betrag
A5: SEHEN SIE SICH DAS AN Sie sollten beim Ergebnis =SVERWEIS(C10;C5:D8;2;FALSCH) landen. | C5: Äpfel | D5: 50
A6: WISSENSWERTES Sie können Zell- und Bereichsbezüge eingeben oder sie mit der Maus auswählen. | C6: Orangen | D6: 20
A7: WISSENSWERTES Beim Eintritt in den Abschnitt der einzelnen Argumente wird die Beschreibung des jeweiligen Arguments am unteren Rand des Formulars angezeigt, oberhalb des Formelergebnisses. | C7: Bananen | D7: 60
A8: Zurück | C8: Zitronen | D8: 40
A9: Weiter
A10: Weitere Informationen im Web | C10: Äpfel | D10: =VLOOKUP(C10,C5:D8,2,FALSE) -> 50
A11: Übersicht über Formeln in Excel
A12: Excel-Funktionen (nach Kategorie)
A13: Excel-Funktionen (alphabetisch)
A14: Kostenlose Excel-Schulung online

Sheet Formelfehler
A1: Beheben von Formelfehlern
A2: An irgendeinem Punkt wird Ihnen eine Formel unterkommen, die einen Fehler aufweist, was Excel als "#Fehlername" anzeigt. Fehler können nützlich sein, weil sie darauf hinweisen, dass etwas nicht richtig funktioniert, aber ihre Behebung kann zur Herausforderung werden. Glücklicherweise gibt es eine Reihe von Optionen, die Ihnen helfen, die Quelle des Fehlers dingfest zu machen und ihn zu beheben.
A3: Fehlerüberprüfung – Gehen Sie zu "Formeln" > "Fehlerüberprüfung". Dadurch wird ein Dialogfeld geladen, das Ihnen die allgemeine Ursache Ihres spezifischen Fehlers mitteilt. In Zelle D9 wird der Fehler "#NV" dadurch verursacht, dass es keinen Wert gibt, der mit "Apfel" übereinstimmt. Sie können dies beheben, indem Sie einen vorhandenen Wert verwenden, den Fehler mithilfe von WENNFEHLER unterdrücken oder ihn ignorieren, weil sie wissen, dass er verschwindet, wenn Sie einen vorhandenen Wert verwenden. | C3: Obst | D3: Betrag
A4: Wenn Sie auf "Hilfe für diesen Fehler" klicken, wird ein für die Fehlermeldung spezifisches Hilfethema angezeigt. Wenn Sie auf "Berechnungsschritte anzeigen" klicken, wird ein Dialogfeld "Formel auswerten" angezeigt. | C4: Äpfel | D4: 50
A5: Bei jedem Klicken auf "Auswerten" führt Excel abschnittsweise einen Schritt der Formel aus. Dadurch erhalten Sie nicht zwangsläufig Informationen dazu, warum ein Fehler aufritt, aber Sie sehen, an welcher Stelle er auftritt. Sehen Sie sich an diesem Punkt das Hilfethema an, um abzuleiten, was mit Ihrer Formel schief gelaufen ist. | C5: Orangen | D5: 20
A6: EINFACH AUSPROBIEREN Was ist hier falsch? Hinweis: Wir versuchen, die SUMME über alle Artikel zu ziehen. | C6: Bananen | D6: 60
A7: WISSENSWERTES Durch Klicken auf "Optionen" können Sie Regeln festlegen, wann Fehler in Excel angezeigt oder ignoriert werden. | C7: Zitronen | D7: 40
A8: Zurück
A9: Weiter | C9: Apfel | D9: =VLOOKUP(C9,C3:D7,2,FALSE) -> 
A10: Weitere Informationen im Web
A11: Fehler in Formeln ermitteln
A12: Vermeiden defekter Formeln
A13: Schrittweises Auswerten von verschachtelten Formeln
A14: Kostenlose Excel-Schulung online
C30: Obst | D30: Betrag
C31: Äpfel | D31: 50
C32: Orangen | D32: 20
C33: Bananen | D33: 60
C34: Zitronen | D34: 40
C36: Gesamt | D36: =sume(D31:D34) -> 

Sheet Weitere Informationen
A1: Weitere Fragen zu Excel?
A2: Drücken Sie ALT+M, und geben Sie ein, was Sie wissen möchten
A3: Machen Sie weiter. Es gibt noch mehr über Excel zu lernen:
A4: LinkedIn Learning: Video-Kurse für alle Stufen – vom Anfänger bis zum Fortgeschrittenen. Für das Selbststudium.
A5: Community: Stellen Sie Fragen, und setzen Sie sich mit anderen Excel-Fans in Verbindung.
A6: Sonstige Neuigkeiten Office 365-Abonnenten erhalten fortlaufend Updates und neue Features.
